Cogmind - Beta 11.1 @@@ ROGUE MODE // 2022.06.27 @ 20:24:50 Player: AnthonyDPS 2004 Result: Destroyed by G-34 Mercenary with Small Laser Performance ------------- Evolutions (1) 500 Regions Visited (3) 600 Robots Destroyed (9) 45 Value Destroyed (80) 80 Prototype IDs (0) 0 Alien Tech Used (0) 0 Bonus (0) 0 TOTAL SCORE: 1225 Bonus ------- None Cogmind --------- Core Integrity 0/400 Matter 263/300 Energy 100/100 System Corruption 0% Temperature Cool (6) Movement Walking (120) Location -9/Materials Parts ------- > --- POWER (1) -------- (None) > --- PROPULSION (3) --- Aluminum Leg > --- UTILITY (3) ------ Small Storage Unit Visual Processing Unit Signal Interpreter > --- WEAPON (2) ------- Assault Rifle > --- INVENTORY (8) ---- Light Ion Engine Light Ion Engine High-capacity Matter Pod (87) Sensor Array Core Shielding Rocket Launcher Peak State ------------ > --- POWER ------------ Light Ion Engine > --- PROPULSION ------- Compact Wheel Compact Wheel > --- UTILITY ---------- Small Storage Unit Sensor Array Improved Terrain Scanner > --- WEAPON ----------- Medium Laser Light Assault Rifle > --- INVENTORY -------- Light Ion Engine Aluminum Leg Aluminum Leg High-capacity Matter Pod Core Shielding Assault Rifle [Rating: 10] Favorites ----------- Power Light Ion Engine Engine Light Ion Engine Propulsion Compact Wheel Leg Aluminum Leg Wheel Compact Wheel Hover Unit Hover Unit Utility Small Storage Unit Device Improved Terrain Scanner Storage Small Storage Unit Processor Visual Processing Unit Weapon Light Assault Rifle Energy Gun Medium Laser Ballistic Gun Light Assault Rifle Build | -11 -10 -10 -9 ------- Run | Scr Mat Min Mat Slots Evolved 2 | . . . 2 Power . | . . . . Propulsion 1 | . . . 1 Utility 1 | . . . 1 Weapon . | . . . . Parts Attached 18 | 8 1 1 8 Power 2 | 1 . 1 . Engine 2 | 1 . 1 . Core . | . . . . Reactor . | . . . . Propulsion 6 | 2 . . 4 Treads . | . . . . Leg 3 | . . . 3 Wheel 2 | 2 . . . Hover 1 | . . . 1 Flight . | . . . . Utility 6 | 3 . . 3 Device 3 | 2 . . 1 Storage 1 | 1 . . . Processor 2 | . . . 2 Hackware . | . . . . Protection . | . . . . Artifact . | . . . . Weapon 4 | 2 1 . 1 Energy Gun 1 | . 1 . . Energy Cannon . | . . . . Ballistic Gun 3 | 2 . . 1 Ballistic Cannon . | . . . . Launcher . | . . . . Special Weapon . | . . . . Impact Weapon . | . . . . Slashing Weapon . | . . . . Piercing Weapon . | . . . . Special Melee Weapon . | . . . . Unidentified Prototypes . | . . . . Parts Lost 9 | . . . 9 Power 1 | . . . 1 Propulsion 4 | . . . 4 Utility 2 | . . . 2 Weapon 2 | . . . 2 Highest Loss Streak 8 | . . . 8 To Critical Strikes . | . . . . Average Slot Usage (%) 94 | . 100 100 77 Engine 12 | . 14 14 9 Wheel 25 | . 28 28 19 Device 14 | . 14 14 15 Storage 13 | . 14 14 11 Energy Gun 11 | . 10 14 9 Ballistic Gun 14 | . 17 14 10 Naked Turns . | . . . . Heaviest Build 13 | 11 12 12 13 Greatest Support 32 | 32 32 32 32 Greatest Overweight (x) 2 | 2 . . 1 Average Overweight (x) . | . . . . Largest Inventory Capacity 8 | 8 8 8 8 Average Capacity 7 | 7 8 8 8 Most Carried 7 | 4 5 7 7 Average Carried 5 | 3 4 5 6 Final Capacity 8 | 8 8 8 8 Final Carried 7 | 4 5 7 6 Class Distribution -------------------- 100% | Mutant Dominant Class ---------------- Mutant | -10/Materials Mutant | -10/Mines Mutant | -9/Materials Resources | -11 -10 -10 -9 ----------- Run | Scr Mat Min Mat Matter Collected 419 | 304 42 24 49 Remotely . | . . . . Salvage Created 237 | 172 42 . 23 Parts 19 | 9 5 . 5 Haulers Intercepted . | . . . . Recyclers Shooed . | . . . . Parts Field Recycled . | . . . . Retrieved Matter . | . . . . Parts Self-Destructed . | . . . . Prevented . | . . . . Kills | -11 -10 -10 -9 ------- Run | Scr Mat Min Mat Combat Hostiles Destroyed 3 | . 3 . . Guns 3 | . 3 . . Classes Destroyed 4 | 2 1 . 1 Tunneler 4 | 4 . . . Recycler 1 | 1 . . . Watcher 1 | . . . 1 Swarmer 3 | . 3 . . Best Kill Streak 3 | 2 3 . 1 Combat Bots Only 3 | . 3 . . Max Kills in Single Turn 1 | 1 1 . 1 Gunslinging . | . . . . Exploded . | . . . . Melee . | . . . . Uniques/NPCs Destroyed . | . . . . Combat | -11 -10 -10 -9 -------- Run | Scr Mat Min Mat Damage Taken 1156 | . 48 . 1108 Core 401 | . . . 401 Absorbed by Shields . | . . . . Core Remaining (%) 100 | 100 . 100 . Volleys Fired 53 | 12 6 30 5 Largest 2 | 2 2 2 1 Hottest 70 | 40 70 70 20 Shots Fired 75 | 24 12 34 5 Gun 75 | 24 12 34 5 Cannon . | . . . . Launcher . | . . . . Special . | . . . . Kinetic 39 | 24 6 4 5 Thermal 36 | . 6 30 . Explosive . | . . . . Electromagnetic . | . . . . Robot Hit Streak 9 | 7 9 . 3 Robot Miss Streak 2 | 2 1 . 1 Penetration Max . | . . . . Secondary Targets . | . . . . Shots Hit Robots 30 | 18 8 . 4 Core Hits 16 | 9 5 . 2 Critical Kills . | . . . . Critical Parts Destroyed . | . . . . Critical Strikes . | . . . . Melee Attacks . | . . . . Impact . | . . . . Slashing . | . . . . Piercing . | . . . . Sneak Attacks . | . . . . Combat Hostiles . | . . . . Follow-up Attacks . | . . . . Damage Inflicted 281 | 139 80 . 62 Guns 274 | 139 80 . 55 Cannons . | . . . . Explosions . | . . . . Melee . | . . . . Ramming 7 | . . . 7 Kinetic 223 | 139 29 . 55 Thermal 51 | . 51 . . Explosive . | . . . . Electromagnetic . | . . . . Impact . | . . . . Slashing . | . . . . Piercing . | . . . . Highest Corruption . | . . . . Average Corruption . | . . . . Corruption Purged . | . . . . Corruption Blocked . | . . . . Overload Shots . | . . . . Overflow Damage . | . . . . Projectiles . | . . . . Explosions . | . . . . Melee . | . . . . Knockbacks . | . . . . Impact . | . . . . Kinetic . | . . . . Secondary . | . . . . Self-Inflicted Damage . | . . . . Shots . | . . . . Rammed . | . . . . Targets Rammed 4 | . . . 4 Kicked 4 | . . . 4 Crushed . | . . . . Highest Temperature 70 | . 70 40 . Average Temperature 20 | . 33 15 . Received Heat Transfer 399 | . . . 399 Siege Activations . | . . . . Robots Corrupted . | . . . . Combat Hostiles . | . . . . Parts Fried . | . . . . Impact Corruptions . | . . . . Robots Melted . | . . . . Combat Hostiles . | . . . . Parts Melted . | . . . . Heat Transferred 148 | . 148 . . Parts Sabotaged . | . . . . Parts Stolen . | . . . . Parts Stripped . | . . . . Power Chain Reactions . | . . . . Missiles Intercepted . | . . . . Alert | -11 -10 -10 -9 ------- Run | Scr Mat Min Mat Peak Influence 85 | 25 85 33 35 Initial 33 | . 16 33 . Average 6 | 8 4 11 2 Maximum Alert Level . | . . . . Low Security (%) 100 | 100 100 100 100 Level 1 . | . . . . Level 2 . | . . . . Level 3 . | . . . . Level 4 . | . . . . Level 5 . | . . . . High Security . | . . . . Max Security . | . . . . Squads Dispatched 2 | . 1 . 1 Investigation 1 | . . . 1 Extermination . | . . . . Reinforcement 1 | . 1 . . Assault . | . . . . Garrison . | . . . . Intercept . | . . . . Searches Triggered . | . . . . Construction Impeded . | . . . . Haulers Reinforced . | . . . . Active Scanning Responses . | . . . . Cargo Convoy Interrupts . | . . . . Stealth | -11 -10 -10 -9 --------- Run | Scr Mat Min Mat Distress Signals 1 | . . . 1 Communications Jammed . | . . . . Distress Signals . | . . . . Times Spotted 13 | . 5 . 8 Peak Tracking Total 5 | . 3 . 5 Tactical Retreats . | . . . . Traps | -11 -10 -10 -9 ------- Run | Scr Mat Min Mat Traps Triggered 1 | . . . 1 Indirectly . | . . . . Trap Hack Attempts . | . . . . Triggered . | . . . . Disarmed . | . . . . Reprogrammed . | . . . . Reused . | . . . . Traps Extracted . | . . . . Installed . | . . . . Triggered . | . . . . Machines | -11 -10 -10 -9 ---------- Run | Scr Mat Min Mat Machines Disabled . | . . . . Max in Single Turn . | . . . . Machines Sabotaged . | . . . . Garrisons Compromised . | . . . . Overloaded Fab Kills . | . . . . Hacking | -11 -10 -10 -9 --------- Run | Scr Mat Min Mat Machines Accessed 4 | . 2 . 2 Terminals 2 | . 1 . 1 Fabricators . | . . . . Repair Stations . | . . . . Recycling Units 2 | . 1 . 1 Scanalyzers . | . . . . Garrison Access . | . . . . Total Hacks 5 | . 2 . 3 Successful 4 | . 1 . 3 Failed 1 | . 1 . . Catastrophic . | . . . . Database Lockouts . | . . . . Manual . | . . . . Terminals 2 | . 1 . 1 Fabricators . | . . . . Repair Stations . | . . . . Recycling Units 3 | . 1 . 2 Scanalyzers . | . . . . Garrison Access . | . . . . Terminal Hacks 1 | . . . 1 Hauler Manifests 1 | . . . 1 Fabricator Hacks . | . . . . Repair Station Hacks . | . . . . Recycling Unit Hacks 3 | . 1 . 2 Report Inventory 3 | . 1 . 2 Scanalyzer . | . . . . Garrison Access Hacks . | . . . . Unauthorized Hacks . | . . . . Terminals . | . . . . Fabricators . | . . . . Repair Stations . | . . . . Recycling Units . | . . . . Scanalyzers . | . . . . Garrison Access . | . . . . Data Cores Recovered . | . . . . Used . | . . . . Hacking Detections 1 | . 1 . . Full Trace Events . | . . . . Feedback Events . | . . . . Feedback Blocked . | . . . . Robot Schematics Acquired . | . . . . Robots Built . | . . . . Authchips . | . . . . Time . | . . . . Total Robot Build Rating . | . . . . Part Schematics Acquired . | . . . . Parts Built . | . . . . Authchips . | . . . . Time . | . . . . Total Part Build Rating . | . . . . Parts Repaired . | . . . . Time . | . . . . Parts Recycled . | . . . . Recycled Matter . | . . . . Retrieved Matter . | . . . . Retrieved Components . | . . . . Parts Scanalyzed . | . . . . Part Schematics Acquired . | . . . . Parts Damaged . | . . . . Bothacking | -11 -10 -10 -9 ------------ Run | Scr Mat Min Mat Used RIF Installer . | . . . . Robots Hacked . | . . . . Non-combat . | . . . . Combat . | . . . . Robot Hacks Applied . | . . . . Relay Couplers Released . | . . . . Fabnet Peak Effective % . | . . . . Robots Rewired . | . . . . Allies Hacked . | . . . . Hacks Repelled . | . . . . Allies | -11 -10 -10 -9 -------- Run | Scr Mat Min Mat Total Allies . | . . . . Largest Group . | . . . . Highest-Rated Group . | . . . . Highest-Rated Ally . | . . . . Total Orders . | . . . . Ally Attacks . | . . . . Total Damage . | . . . . Kills . | . . . . Allies Corrupted . | . . . . Allies Melted . | . . . . Intel | -11 -10 -10 -9 ------- Run | Scr Mat Min Mat Robot Analysis Total . | . . . . Derelict Logs Recovered 1 | . . 1 . Drone Launches . | . . . . Drone Recoveries . | . . . . Exploration | -11 -10 -10 -9 ------------- Run | Scr Mat Min Mat Turns Passed 4056 | 144 1790 1169 953 Spaces Moved 710 | 101 173 199 237 Core 37 | 17 . . 20 Treads . | . . . . Legs 64 | . . . 64 Wheels 609 | 84 173 199 153 Hover . | . . . . Flight . | . . . . Fastest Speed 50 | 50 100 100 100 Average Speed 100 | 92 100 100 105 Slowest Speed 150 | 150 100 100 120 Overloaded Moves . | . . . . Propulsion Burnouts . | . . . . Robots Hopped . | . . . . Cave-ins Triggered . | . . . . Exploration Rate (%) 21 | 6 26 36 19 Regions Visited 3 Branch Regions 1 Pre-discovered Areas 1 | . . 1 . Known Exits Taken . | . . . . Unknown Exits Taken 3 | 1 1 1 . Scrap Searched 1 | . . 1 . Spaces Dug . | . . . . Terrain Destroyed . | . . . . Melee . | . . . . Projectile . | . . . . AOE . | . . . . Terrain Rammed . | . . . . Walls Destroyed . | . . . . Machines Disabled . | . . . . Actions | -11 -10 -10 -9 --------- Run | Scr Mat Min Mat Total 3975 | 128 1779 1135 933 Wait 3180 | 3 1598 904 675 Move 707 | 100 172 198 237 Hop . | . . . . Pick Up 10 | 4 1 2 3 Fast Attach 13 | 8 1 . 4 Attach 4 | . . . 4 Detach . | . . . . Swap 1 | . . 1 . Drop 3 | 1 1 . 1 Fire 53 | 12 6 30 5 Melee . | . . . . Ram . | . . . . Kick 4 | . . . 4 Crush . | . . . . Escape Stasis . | . . . . Rewire . | . . . . Trap . | . . . . Miscellaneous . | . . . . Route ------- -11/Scrapyard -10/Materials -10/Mines -9/Materials History --------- Turn | Location | Event 7 | -11/Scrapyard | Discovered new exit (range 14) 145 | -11/Scrapyard | Entered Materials 309 | -10/Materials | Build established: Mutant 1915 | -10/Materials | Discovered new exit (range 16) 1935 | -10/Materials | Entered Mines 1954 | -10/Mines | Learned location of Zion (-6) 3099 | -10/Mines | Discovered new exit (range 5) 3104 | -10/Mines | Entered Materials 3104 | -9/Materials | Evolved 2 slots: Propulsion x1, Utility x1 3971 | -9/Materials | Core integrity fell below 50% 4004 | -9/Materials | Core integrity fell below 20% 4027 | -9/Materials | Lost 8 parts (1p3n2u2w) 4057 | -9/Materials | Destroyed by G-34 Mercenary with Small Laser Last Messages --------------- 03958_ Imp. Terrain Scanner destroyed. 03963_ Acquired Carbon-fiber Leg. 03970_ Aluminum Leg destroyed. 03971_ Critical hit (Burn: +37). 03974_ Sensor Array destroyed. 03993_ Acquired 26 matter. 03995_ Triggered Alarm Trap. 03995_ An alarm sounds. 03995_ ALERT: Alarm triggered, dispatching investigation squad. 03996_ Carbon-fiber Leg destroyed. 04002_ K-01 Serf collects debris. 04021_ W-16 Scout destroyed. 04025_ Acquired Hover Unit. 04026_ Acquired 23 matter. 04029_ Acquired Visual Processing Unit. 04031_ Acquired Signal Interpreter. 04033_ Critical hit (Burn: +37). 04039_ Acquired Sensor Array. 04041_ Acquired Lgt. Ion Engine. 04051_ Hover Unit destroyed. Map ----- +----------------------------------------------------+ | ### #?????#??# """ # ############## #?? | | # #???###### ## ########??###?## ##?? | | " ##### ########## # # ? ? # #??? | | =# # [ #? ????"?# #??? | | # # # ??? + #??? | | #####/## ########## # # ? ???" # #??? | | #?? ##+#######????# + """ #??? ?"" # #??? | | #### " # #????# # """ # """?# #??? | | ???# "" # """ #????## ## """ # ? ??# #??? | | ???# "" # """ #?????# ## #???? ??# #??? | | #??# """ # """ #?????# ## """ #??? ????# #??? | | ???# "" # ####### ## """ #????????# #??? | | ???# """ # "" + ## """ #????????# #??? | | ?????""" # "Y #######Y## #????????# #??# | | ??????"? # "" #?????#Y######??????????# ???? | | ???????? # #????## #???????????????# ???? | | ????? ? ##########???#?# #?#????????????#? ???? | | ?????????#??????????#???# #??????????????????????? | | ????????????????????????# #??????????????????????? | | ????#?????#???#????#????# #??????????????????????? | | ?????????##?????????????# #??????????????????????? | | ????????????????????????# #??????????????????????? | | ????????????????????????# #??????????????????????? | | ????????????????????????# #??????????????????????? | | ????????????????????????# #??????????????????????? | | ???????????????????????##@#??????????????????????? | | ????????????????????????#g#??????????????????????? | | ??????????????????????? ??????????????????????? | | ?????????????????#?????? ??????????????????????? | | ??????????????????????? ?????????????????????? | | ???????????????????????" ?????????????????????? | | ??????????????????????"" ????????????????????? | | ??????????????????????"Tg ????????????????????? | | ?????????????????????#"" ???????????????????? | | ??????????????????????"" =???????????????????? | | ??????????????????????? #??????????????????? | | ???????????????????????###+####??????????????????? | | ?????????????????????????????????????????????????? | | ?????????????????????????????????????????????????? | | ?????????????????????????????????????????????????? | | ?????????????????????????????????????????????????? | | ?????????????????????????????????????????????????? | | ?????????????????????????????????????????????????? | | ?????????????????????????????????????????????????? | | ?????????????????????????????????????????????????? | | ?????????????????????????????????????????????????? | | ?????????????????????????????????????????????????? | | ?????????????????????????????????????????????????? | | ?????????????????????????????????????????????????? | | ?????????????????????????????????????????????????? | +----------------------------------------------------+ Best States ------------- Heat Dissipation 28 Energy Generation 10 Energy Capacity 125 Matter Stores 300 Matter Capacity 300 Sight Range 16 Robot Scan Range 14 Terrain Scan Range 16 Terrain Scan Density 10 Evasion (%) 55 Item Schematics ----------------- None Robot Schematics ------------------ None Fabricated ------------ Nothing Alien Tech Used ----------------- None Achievements -------------- None Challenges ------------ None Game ------ Seed LargeHackingCasing Manual? 0 Play Time 00:12:49 Cumulative 32.3 hours Start 2022.06.27 @ 20:12:48 End 2022.06.27 @ 20:24:50 Sessions 1 Manual Loads 0 Difficulty Rogue Special Mode None Game No. 64 Rogue 64 Adventurer 0 Explorer 0 Win Type - Total 0 Types 0/0/0/0/0/0/0/0/0 Lore% 25 Gallery% 33 Achievement% 26 Wizard Run 0 Options --------- ASCII 0 Keyboard 0 Movement Numpad Keybinds 0 Fullscreen 2 Font 18/SmallcapsGlow Map View 76x50 Tactical HUD 1 Map Filters NONE Filters NONE Steam 1 RUN: edd2f8a7-39f5-40b9-a9df-7c322241bd6d